bitfinex-derivatives/quotes_SOLF0:USTF0_20250323
["timestamp","ask_amount","ask_price","bid_price","bid_amount"]
[1742762400422,7.69359412,130.97,130.95,7.6377]
[1742762400922,7.6373,130.96,130.94,315.92875953]
[1742762402225,7.6378,130.95,130.94,42.65847136]
[1742762403420,7.6378,130.95,130.94,0.05196155]
[1742762422541,17.50808817,130.95,130.94,0.05196155]
[1742762422837,9.87028817,130.95,130.91,9.87028817]
[1742762423038,9.87028817,130.94,130.91,9.87028817]
[1742762423240,7.6393,130.93,130.91,9.87028817]
[1742762423939,7.69596833,130.93,130.91,9.92660519]
[1742762424939,7.6396,130.92,130.91,9.92660519]
[1742762425433,7.6396,130.92,130.91,0.05631702]
[1742762427542,17.50988817,130.92,130.91,0.05631702]
[1742762451156,7.6408,130.9,130.88,17.51218817]
[1742762452056,17.51078817,130.91,130.88,17.51218817]
[1742762452257,0.05558353,130.9,130.88,17.57007378]
[1742762462170,7.69648353,130.9,130.88,17.57007378]
[1742762462971,7.69648353,130.9,130.88,9.92817378]
[1742762464272,7.6413,130.89,130.88,0.05788561]
[1742762464472,17.51158817,130.89,130.88,0.05788561]
[1742762468475,44.0669717,130.9,130.88,0.05788561]
[1742762468667,26.55558353,130.9,130.88,0.05788561]
[1742762469476,26.55558353,130.9,130.89,7.6413]
[1742762469670,26.55558353,130.9,130.88,0.05788561]
[1742762470075,26.55558353,130.9,130.88,7.69938561]
[1742762472179,34.19638353,130.9,130.88,7.69938561]
[1742762473979,34.19638353,130.9,130.88,0.05788561]
[1742762477086,34.19638353,130.9,130.88,7.69978561]
[1742762477677,44.0666717,130.9,130.88,7.69978561]
[1742762478283,44.0666717,130.9,130.88,0.05788561]
[1742762478680,7.6413,130.89,130.88,0.05788561]
[1742762478983,17.51158817,130.89,130.88,0.05788561]
[1742762483986,7.6413,130.89,130.88,0.05788561]
[1742762490494,26.55558353,130.9,130.88,7.69978561]
[1742762491388,34.19658353,130.9,130.88,7.69978561]
[1742762491595,0.05558353,130.9,130.88,7.69978561]
[1742762492595,7.69638353,130.9,130.88,7.69978561]
[1742762494296,7.69638353,130.9,130.88,17.57007378]
[1742762495292,7.69638353,130.9,130.88,9.92817378]
[1742762495495,7.6413,130.89,130.88,9.92817378]
[1742762495699,7.6413,130.89,130.88,0.05788561]
[1742762498600,7.69658353,130.9,130.88,0.05788561]
[1742762498896,0.05558353,130.9,130.89,9.87028817]
[1742762499600,0.05558353,130.9,130.89,17.51158817]
[1742762502302,0.05558353,130.9,130.88,17.56977378]
[1742762505701,0.05558353,130.9,130.88,9.92817378]
[1742762505906,0.05558353,130.9,130.89,7.6413]
[1742762506405,0.05558353,130.9,130.89,17.51158817]
[1742762527923,0.05558353,130.9,130.89,44.01158817]
[1742762529531,26.48,130.95,130.92,7.6391]
[1742762529725,26.48,130.95,130.92,9.87028817]
[1742762530023,17.50788817,130.96,130.92,9.87028817]
[1742762530521,17.50788817,130.96,130.93,7.6387]
[1742762530728,0.05394019,130.95,130.93,7.6936258]
[1742762530920,7.69184019,130.95,130.93,7.6936258]
[1742762531116,7.69184019,130.95,130.93,0.0549258]
[1742762533729,7.69184019,130.95,130.93,7.6939258]
[1742762534030,7.69184019,130.95,130.93,17.56421397]
[1742762538433,7.69184019,130.95,130.93,7.6939258]
[1742762549537,7.69184019,130.95,130.93,0.0549258]
[1742762550137,7.69184019,130.95,130.93,7.6939258]
[1742762555536,7.69184019,130.95,130.93,17.56421397]
[1742762560443,7.69184019,130.95,130.93,9.92521397]
[1742762569150,7.6384,130.94,130.93,9.92521397]
[1742762572957,7.6407,130.9,130.89,283.88360394]
[1742762575365,7.6407,130.9,130.89,10.55331577]
[1742762575663,7.6413,130.89,130.88,9.91972929]
[1742762578968,26.53626805,130.91,130.88,9.91972929]
[1742762579267,26.53626805,130.91,130.9,9.87028817]
[1742762579455,0.05626805,130.91,130.9,17.51098817]
[1742762579663,28.5237,130.96,130.9,36.35028817]
[1742762579860,26.48,130.96,130.94,9.87028817]
[1742762580061,7.6384,130.94,130.93,9.87028817]
[1742762580466,26.48,130.96,130.93,9.87028817]
[1742762580667,7.6381,130.95,130.93,9.87028817]
[1742762580865,7.6381,130.95,130.93,9.9238633]
[1742762583467,7.6384,130.94,130.93,9.9238633]
[1742762584374,7.6384,130.94,130.93,0.05357513]
[1742762587076,17.50868817,130.94,130.93,0.05357513]
[1742762587272,17.50868817,130.94,130.93,7.513e-05]
[1742762587872,21.51138817,130.94,130.93,7.513e-05]
[1742762589576,380.51138817,130.94,130.93,7.513e-05]
[1742762595076,7.6384,130.94,130.93,7.513e-05]
[1742762595280,7.638,130.95,130.93,7.513e-05]
[1742762595481,26.53461385,130.96,130.93,7.513e-05]
[1742762596076,34.17211385,130.96,130.93,7.63907513]
[1742762596280,26.53461385,130.96,130.93,7.513e-05]
[1742762596482,9.87028817,130.94,130.93,7.513e-05]
[1742762596872,17.50868817,130.94,130.93,7.513e-05]
[1742762597381,7.6384,130.94,130.93,7.513e-05]
[1742762597580,7.6379,130.95,130.93,7.513e-05]
[1742762597782,36.40490202,130.96,130.93,7.513e-05]
[1742762597975,36.40490202,130.96,130.93,7.63877513]
[1742762598176,34.17201385,130.96,130.93,9.8703633]
[1742762598481,26.53461385,130.96,130.94,7.6381]
[1742762599684,0.05461385,130.96,130.94,7.6381]
[1742762601987,7.69191385,130.96,130.94,7.6381]
[1742762602283,7.69191385,130.96,130.93,17.5090633]
[1742762604483,7.69191385,130.96,130.94,7.6384]
[1742762604687,0.05461385,130.96,130.94,9.87028817]
[1742762605589,0.05461385,130.96,130.95,7.6378]
[1742762606885,0.05461385,130.96,130.95,17.50808817]
[1742762610290,0.05461385,130.96,130.95,9.87028817]
[1742762611691,7.69181385,130.96,130.95,9.87028817]
[1742762612497,7.69181385,130.96,130.94,9.87028817]
[1742762613191,7.6378,130.95,130.94,9.87028817]
[1742762613389,7.6378,130.95,130.93,9.8703633]
[1742762614289,7.6384,130.94,130.93,9.8703633]
[1742762614488,7.6384,130.94,130.93,7.513e-05]
[1742762617395,34.1181,130.95,130.93,7.513e-05]
[1742762618195,26.48,130.95,130.93,17.5091633]
[1742762618393,26.48,130.95,130.94,9.87028817]
[1742762618593,0.05461385,130.96,130.94,9.87028817]
[1742762618794,0.05461385,130.96,130.94,17.50838817]
[1742762619295,0.05461385,130.96,130.95,17.50808817]
[1742762619993,0.05461385,130.96,130.95,9.87028817]
[1742762620696,7.69181385,130.96,130.95,9.87028817]
[1742762625598,0.05461385,130.96,130.93,9.8703633]
[1742762625798,9.92490202,130.96,130.93,7.513e-05]
[1742762626001,7.6384,130.94,130.93,7.513e-05]
[1742762643213,7.6384,130.94,130.93,9.8703633]
[1742762648418,7.6384,130.94,130.93,7.513e-05]
[1742762664432,0.05461385,130.96,130.93,9.8703633]
[1742762664726,0.05461385,130.96,130.94,9.87028817]
[1742762665623,0.05461385,130.96,130.95,7.6378]
[1742762666125,0.05461385,130.96,130.94,17.50838817]
[1742762666624,0.05461385,130.96,130.94,9.87028817]
[1742762666926,0.05461385,130.96,130.93,9.8703633]
[1742762667324,7.6384,130.94,130.93,7.513e-05]
[1742762667923,43.98868817,130.94,130.93,7.513e-05]
[1742762688833,34.1184,130.94,130.93,7.513e-05]
[1742762693139,43.98868817,130.94,130.93,7.513e-05]
[1742762717864,34.1184,130.94,130.93,7.513e-05]
[1742762718761,7.6384,130.94,130.93,7.513e-05]
[1742762719565,17.50868817,130.94,130.93,7.513e-05]
[1742762723766,7.6384,130.94,130.93,7.513e-05]
[1742762731776,17.50868817,130.94,130.93,7.513e-05]
[1742762747590,7.6384,130.94,130.93,7.513e-05]
[1742762747792,34.1184,130.94,130.93,7.513e-05]
[1742762749287,7.6384,130.94,130.93,7.513e-05]
[1742762750486,34.1184,130.94,130.93,7.513e-05]
[1742762759094,7.6384,130.94,130.93,7.513e-05]
[1742762759296,34.1184,130.94,130.93,7.513e-05]
[1742762760296,26.48,130.94,130.93,7.513e-05]
[1742762760505,359.05461385,130.96,130.93,9.8703633]
[1742762761201,366.69211385,130.96,130.93,17.5090633]
[1742762761901,366.69211385,130.96,130.94,7.6384]
[1742762762701,366.69211385,130.96,130.93,19.6209633]
[1742762762901,366.69211385,130.96,130.94,9.87028817]
[1742762764103,359.05461385,130.96,130.94,17.50838817]
[1742762765602,0.05461385,130.96,130.94,17.50838817]
[1742762766096,7.69201385,130.96,130.94,17.50838817]
[1742762766300,0.05461385,130.96,130.94,17.50838817]
[1742762767304,9.87028817,130.95,130.93,7.513e-05]
[1742762767506,36.35028817,130.94,130.93,7.513e-05]
[1742762768396,43.98868817,130.94,130.93,7.513e-05]
[1742762786811,17.50868817,130.94,130.93,7.513e-05]
[1742762787011,43.98868817,130.94,130.93,7.513e-05]
[1742762788816,7.6384,130.94,130.93,7.513e-05]
[1742762789015,34.1184,130.94,130.93,7.513e-05]
[1742762791218,43.98868817,130.94,130.93,7.513e-05]
[1742762793220,17.50868817,130.94,130.93,7.513e-05]
[1742762793520,34.1184,130.94,130.93,7.513e-05]
[1742762799321,359.0,130.95,130.93,9.8703633]
[1742762799524,0.05461385,130.96,130.94,9.87028817]
[1742762799723,0.05461385,130.96,130.94,17.50838817]
[1742762800322,7.69191385,130.96,130.94,9.87028817]
[1742762801921,7.69191385,130.96,130.94,17.50868817]
[1742762805525,7.69191385,130.96,130.94,9.87028817]
[1742762806729,7.69191385,130.96,130.94,17.50858817]
[1742762808825,0.05461385,130.96,130.95,7.6378]
[1742762809026,0.05461385,130.96,130.94,9.87028817]
[1742762809229,0.05461385,130.96,130.94,17.50838817]
[1742762810131,7.69191385,130.96,130.94,17.50838817]
[1742762815948,0.05461385,130.96,130.94,17.50838817]
[1742762816244,0.05461385,130.96,130.95,9.87028817]
[1742762816744,0.05461385,130.96,130.95,17.50808817]
[1742762817345,7.6352,131.0,130.95,36.33028817]
[1742762817549,7.6352,131.0,130.98,9.87028817]
[1742762818346,7.6352,131.0,130.97,9.87028817]
[1742762818648,7.69014698,131.0,130.97,9.92844323]
[1742762818845,7.69014698,131.0,130.97,17.56474323]
[1742762820248,7.69014698,131.0,130.98,9.87028817]
[1742762821250,7.6355,130.99,130.98,9.87028817]
[1742762821546,0.05494698,131.0,130.98,9.87028817]
[1742762821746,7.6355,130.99,130.98,9.87028817]
[1742762822148,0.05494698,131.0,130.98,9.87028817]
[1742762822953,7.69014698,131.0,130.98,9.87028817]
[1742762824852,7.6355,130.99,130.98,9.87028817]
[1742762825552,7.69014698,131.0,130.98,9.87028817]
[1742762826143,0.05494698,131.0,130.99,9.87028817]
[1742762827254,0.05494698,131.0,130.99,17.50578817]
[1742762828755,7.68984698,131.0,130.99,9.87028817]
[1742762829751,0.05494698,131.0,130.99,9.87028817]
[1742762831456,0.05494698,131.0,130.99,17.50578817]
[1742762831653,0.05494698,131.0,130.99,9.87028817]
[1742762832755,7.68984698,131.0,130.99,9.87028817]
[1742762834858,7.6355,130.99,130.98,9.87028817]
[1742762835064,9.92523515,131.0,130.97,9.92844323]
[1742762835364,36.38523515,131.0,130.97,0.05815506]
[1742762836465,7.6361,130.98,130.97,0.05815506]
[1742762838069,17.50638817,130.98,130.97,0.05815506]
[1742762840272,7.6361,130.98,130.97,0.05815506]
[1742762843366,7.6361,130.98,130.97,9.92844323]
[1742762843572,7.6358,130.99,130.97,9.92844323]
[1742762844574,7.6361,130.98,130.97,9.92844323]
[1742762849675,7.6358,130.99,130.97,9.92844323]
[1742762851281,7.6358,130.99,130.98,9.87028817]
[1742762852480,7.69014698,131.0,130.98,9.87028817]
[1742762855585,7.6355,130.99,130.98,9.87028817]
[1742762856783,7.6361,130.98,130.97,0.05815506]
[1742762859084,7.6358,130.99,130.97,9.92844323]
[1742762862382,0.05494698,131.0,130.98,9.87028817]
[1742762862583,0.05494698,131.0,130.99,36.33028817]
[1742762862788,0.05494698,131.0,130.99,43.96578817]
[1742762864083,34.0923,131.05,131.02,7.6336]
[1742762864287,34.0923,131.05,131.04,9.87028817]
[1742762864687,7.6323,131.05,131.04,9.87028817]
[1742762867888,7.6326,131.04,131.03,9.92079079]
[1742762868278,7.6326,131.04,131.03,0.05050262]
[1742762876789,17.50288817,131.04,131.03,0.05050262]
[1742762877195,7.6326,131.04,131.03,0.05050262]
[1742762881394,7.6326,131.04,131.0,9.87028817]
[1742762881395,9.87028817,131.04,131.0,9.87028817]
[1742762881597,26.48,131.03,131.0,9.87028817]
[1742762882498,26.48,131.03,131.0,9.92234442]
[1742762882499,7.6343,131.01,131.0,9.92234442]
[1742762885394,7.6343,131.01,131.0,0.05205625]
[1742762893509,17.50458817,131.01,131.0,0.05205625]
[1742762894515,17.50458817,131.01,131.0,5.625e-05]
[1742762917434,17.50458817,131.01,130.95,9.87028817]
[1742762917435,7.6378,130.95,130.94,9.87028817]
[1742762917634,7.6378,130.95,130.93,9.87028817]
[1742762918737,7.69039813,130.95,130.93,9.92816076]
[1742762920539,7.6384,130.94,130.93,9.92816076]
[1742762921833,7.6384,130.94,130.93,0.05787259]
[1742762922033,34.0984,130.94,130.93,0.05787259]
[1742762922329,43.96868817,130.94,130.93,7.259e-05]
[1742762929142,402.96868817,130.94,130.93,7.259e-05]
[1742762939652,385.48,130.94,130.93,7.259e-05]
[1742762940452,359.0,130.94,130.93,7.259e-05]
[1742762940648,385.48,130.94,130.93,7.259e-05]
[1742762940845,393.1184,130.94,130.93,7.259e-05]
[1742762950556,385.48,130.94,130.93,7.259e-05]
[1742762951757,393.1184,130.94,130.93,7.259e-05]
[1742762954563,402.98868817,130.94,130.93,7.259e-05]
[1742762961564,402.98868817,130.94,130.87,13.98448817]
[1742762961770,7.6419,130.89,130.87,13.98448817]
[1742762962170,7.6419,130.88,130.87,13.98448817]
[1742762962371,26.48,130.9,130.87,13.98448817]
[1742762962565,26.48,130.9,130.88,9.87028817]
[1742762962766,26.53122048,130.9,130.88,9.87028817]
[1742762963168,34.17242048,130.9,130.88,9.87028817]
[1742762964370,7.6413,130.89,130.88,9.87028817]
[1742762973878,0.05122048,130.9,130.88,9.87028817]
[1742762974083,0.05122048,130.9,130.89,9.87028817]
[1742762974981,0.05122048,130.9,130.89,17.51158817]
[1742762975384,0.05122048,130.9,130.89,19.64118817]
[1742762997905,0.05122048,130.9,130.89,9.87028817]
[1742762999914,7.69192048,130.9,130.89,9.87028817]
[1742763000408,7.69192048,130.9,130.88,9.87028817]
[1742763000711,36.40150865,130.9,130.87,263.57376331]
[1742763000913,36.40150865,130.9,130.87,0.05376331]
[1742763002114,7.6419,130.88,130.87,0.05376331]
[1742763002513,7.6419,130.88,130.87,9.92405148]
[1742763003314,7.6415,130.89,130.87,9.92405148]
[1742763003517,9.87028817,130.88,130.87,0.05376331]
[1742763004313,17.51218817,130.88,130.87,0.05376331]
[1742763004715,7.6419,130.88,130.87,0.05376331]
[1742763007817,7.6416,130.89,130.87,9.92405148]
[1742763008306,38.41710865,130.9,130.87,9.92405148]
[1742763008512,7.6419,130.88,130.87,9.92405148]
[1742763014625,7.6419,130.88,130.87,0.05376331]
[1742763018720,17.51218817,130.88,130.87,0.05376331]
[1742763025027,7.6419,130.88,130.87,0.05376331]
[1742763052151,17.51218817,130.88,130.87,0.05376331]
[1742763052451,7.6419,130.88,130.87,0.05376331]
[1742763059757,17.51218817,130.88,130.87,0.05376331]
[1742763068059,7.6427,130.87,130.84,17.51448817]
[1742763068258,34.1227,130.87,130.84,17.51448817]
[1742763068955,34.1227,130.87,130.85,9.87028817]
[1742763069856,26.48,130.87,130.85,9.87028817]
[1742763070262,34.1228,130.87,130.85,9.87028817]
[1742763071558,34.1228,130.87,130.84,7.6439]
[1742763071761,34.1228,130.87,130.84,17.51418817]
[1742763072859,7.6428,130.87,130.84,17.51418817]
[1742763073060,34.1228,130.87,130.85,7.6436]
[1742763074863,34.1228,130.87,130.85,17.51388817]
[1742763075465,34.1228,130.87,130.85,9.87028817]
[1742763078065,34.1228,130.87,130.82,30.669]
[1742763078066,9.87028817,130.86,130.82,14.05928817]
[1742763078264,9.87028817,130.86,130.82,9.87028817]
[1742763078766,26.48,130.87,130.82,9.87028817]
[1742763078767,7.644,130.85,130.82,9.87028817]
[1742763079268,7.6442,130.84,130.83,9.87028817]
[1742763079460,9.87028817,130.86,130.82,9.87028817]
[1742763079865,7.6446,130.84,130.82,9.87028817]
[1742763081769,7.645,130.83,130.82,9.87028817]
[1742763082273,26.48,130.84,130.82,9.87028817]
[1742763082474,34.1247,130.84,130.82,9.87028817]
[1742763084373,7.6449,130.83,130.81,7.6459]
[1742763084571,36.35028817,130.84,130.8,9.87028817]
[1742763084766,26.48,130.84,130.81,9.87028817]
[1742763085174,7.6454,130.83,130.81,9.87028817]
[1742763085777,7.6454,130.82,130.81,9.87028817]
[1742763087471,7.6464,130.81,130.8,9.87028817]
[1742763090173,36.35028817,130.84,130.8,9.87028817]
[1742763090174,7.6457,130.82,130.8,9.87028817]
[1742763092581,7.6457,130.82,130.81,9.87028817]
[1742763098483,7.6457,130.82,130.8,9.87028817]
[1742763099587,7.6451,130.83,130.81,9.87028817]
[1742763099783,26.48,130.84,130.81,9.87028817]
[1742763100084,7.6454,130.82,130.81,9.87028817]
[1742763102389,7.646,130.81,130.8,9.87028817]
[1742763103190,9.87028817,130.82,130.78,36.35028817]
[1742763103389,9.87028817,130.82,130.78,9.87028817]
[1742763103688,7.6472,130.79,130.78,9.87028817]
[1742763104486,7.648,130.78,130.77,9.87028817]
[1742763104790,36.35028817,130.81,130.77,9.87028817]
[1742763105190,7.647,130.8,130.77,9.87028817]
[1742763105489,7.647,130.8,130.78,9.87028817]
[1742763107394,7.70274021,130.8,130.78,9.92051057]
[1742763108192,0.05574021,130.8,130.78,17.56821057]
[1742763108386,0.05574021,130.8,130.79,9.87028817]
[1742763109194,0.05574021,130.8,130.79,17.51748817]
[1742763117691,0.05574021,130.8,130.79,9.87028817]
[1742763118197,7.70234021,130.8,130.79,9.87028817]
[1742763120197,0.05574021,130.8,130.79,9.87028817]
[1742763121893,0.05574021,130.8,130.79,17.51748817]
[1742763122099,385.48,130.9,130.79,43.99028817]
[1742763122298,359.0,130.9,130.86,9.87028817]
[1742763122498,16.9211686,130.89,130.87,9.87028817]
[1742763122701,7.6417,130.89,130.87,9.87028817]
[1742763122901,368.87028817,130.9,130.86,9.87028817]
[1742763123295,0.05421737,130.89,130.87,0.05463353]
[1742763123699,7.6422,130.88,130.87,0.05463353]
[1742763124298,7.69571737,130.89,130.87,0.05463353]
[1742763124699,0.05421737,130.89,130.88,9.87028817]
[1742763128006,0.05421737,130.89,130.88,17.51218817]
[1742763128307,443.74202847,131.01,130.88,44.07028817]
[1742763128508,443.74202847,131.01,130.98,9.87028817]
[1742763128803,7.6353,131.0,130.98,9.87028817]
[1742763129305,94.61231664,131.02,130.97,9.87028817]
[1742763129511,0.0560225,131.0,130.98,0.05084486]
[1742763129911,7.6913225,131.0,130.98,9.92113303]
[1742763130108,0.0560225,131.0,130.98,9.92113303]
[1742763130504,7.6913225,131.0,130.98,9.92113303]
[1742763131211,7.6355,130.99,130.98,9.92113303]
[1742763131413,0.0560225,131.0,130.98,0.05084486]
[1742763131906,0.0560225,131.0,130.98,9.92113303]
[1742763132112,0.0560225,131.0,130.99,9.87028817]
[1742763133314,0.0560225,131.0,130.98,9.92113303]
[1742763134113,7.6909225,131.0,130.98,9.92113303]
[1742763134916,7.6355,130.99,130.98,0.05084486]
[1742763135411,44.26578817,130.99,130.98,4.486e-05]
[1742763141915,46.41268817,130.99,130.98,4.486e-05]
[1742763147613,7.639,130.93,130.92,9.87028817]
[1742763153832,7.6396,130.92,130.91,9.91900702]
[1742763159824,7.6396,130.92,130.91,0.04871885]
[1742763161631,7.6396,130.92,130.91,9.91900702]
[1742763162023,17.50988817,130.92,130.91,0.04871885]
[1742763162333,44.16988817,130.92,130.91,0.04871885]
[1742763163237,44.16988817,130.92,130.91,1.885e-05]
[1742763180454,34.2996,130.92,130.91,1.885e-05]
[1742763185049,44.16988817,130.92,130.91,1.885e-05]
[1742763188749,7.6431,130.86,130.83,15.78238817]
[1742763189054,7.6431,130.86,130.83,42.44238817]
[1742763189450,7.6431,130.86,130.83,15.78238817]
[1742763189644,7.6437,130.85,130.83,23.42688817]
[1742763189843,7.6437,130.85,130.83,23.4855573]
[1742763190755,7.6437,130.85,130.83,13.61526913]
[1742763190955,17.56429045,130.86,130.83,13.61526913]
[1742763191152,7.69400228,130.86,130.83,23.4855573]
[1742763191353,7.69400228,130.86,130.84,7.6441]
[1742763191553,0.05060228,130.86,130.85,9.87028817]
[1742763192457,0.05060228,130.86,130.85,17.51398817]
[1742763193460,26.68,130.9,130.88,17.51178817]
[1742763194361,26.73483716,130.9,130.88,17.56979177]
[1742763195062,0.05483716,130.9,130.88,17.56979177]
[1742763196256,7.69563716,130.9,130.88,17.56979177]
[1742763197062,0.05483716,130.9,130.89,17.51158817]
[1742763197259,0.05483716,130.9,130.88,0.0580036]
[1742763197658,7.6413,130.89,130.88,0.0580036]
[1742763198361,17.51158817,130.89,130.88,0.0580036]
[1742763199063,17.51158817,130.89,130.88,3.6e-06]
[1742763201759,19.60738817,130.89,130.88,3.6e-06]
[1742763203767,11.96608817,130.89,130.81,273.43028817]
[1742763204066,9.87028817,130.85,130.81,273.43028817]
[1742763204268,7.6445,130.84,130.81,281.07598817]
[1742763204467,7.6445,130.84,130.82,9.87028817]
[1742763204971,7.69739294,130.84,130.82,9.92517643]
[1742763205571,7.6448,130.83,130.82,9.92517643]
[1742763210170,7.6448,130.83,130.82,0.05488826]
[1742763210874,17.51508817,130.83,130.82,0.05488826]
[1742763212471,7.6448,130.83,130.82,0.05488826]
[1742763225397,17.51508817,130.83,130.82,0.05488826]
[1742763230505,7.6448,130.83,130.82,0.05488826]
[1742763234305,0.05289294,130.84,130.82,0.05488826]
[1742763234805,7.69739294,130.84,130.82,0.05488826]
[1742763238709,7.6448,130.83,130.82,0.05488826]
[1742763254328,0.05289294,130.84,130.82,9.92517643]
[1742763254517,0.05289294,130.84,130.83,9.87028817]
[1742763254824,0.05289294,130.84,130.83,44.11508817]
[1742763255918,0.05289294,130.84,130.82,0.05488826]
[1742763255919,0.05289294,130.84,130.82,9.92517643]
[1742763256217,7.69749294,130.84,130.82,9.92517643]
[1742763256419,0.05289294,130.84,130.82,9.92517643]
[1742763256923,0.05289294,130.84,130.82,17.57027643]
[1742763257320,7.69719294,130.84,130.82,9.92517643]
[1742763258125,7.6448,130.83,130.82,9.92517643]
[1742763258327,7.6448,130.83,130.82,0.05488826]
[1742763262627,17.56768111,130.84,130.82,0.05488826]
[1742763263121,7.69739294,130.84,130.82,0.05488826]
[1742763264029,7.6448,130.83,130.82,0.05488826]
[1742763275128,34.2248,130.83,130.82,0.05488826]
[1742763278733,44.09508817,130.83,130.82,0.05488826]
[1742763282338,44.09508817,130.83,130.82,8.826e-05]
[1742763282736,44.09028817,130.83,130.75,42.33678332]
[1742763282939,9.87028817,130.78,130.75,42.33678332]
[1742763283140,9.87028817,130.78,130.75,10.58419583]
[1742763283938,7.6484,130.77,130.75,10.63428542]
[1742763284138,9.9260428,130.78,130.75,10.63428542]
[1742763284441,0.05575463,130.78,130.75,20.50457359]
[1742763284643,0.05575463,130.78,130.76,9.87028817]
[1742763284840,0.05575463,130.78,130.75,10.63428542]
[1742763284841,0.05575463,130.78,130.77,17.51858817]
[1742763292043,359.0,130.82,130.81,7.646]
[1742763292248,11.98698817,130.85,130.81,17.51628817]
[1742763292451,11.98698817,130.85,130.81,9.87028817]
[1742763292647,7.6445,130.84,130.81,17.51588817]
[1742763293255,7.70221247,130.84,130.81,17.56471978]
[1742763293549,9.87028817,130.83,130.81,0.04883161]
[1742763293852,9.87028817,130.82,130.81,0.04883161]
[1742763294153,17.51568817,130.82,130.81,0.04883161]
[1742763306170,44.13568817,130.82,130.81,0.04883161]
[1742763312877,34.2654,130.82,130.81,0.04883161]
[1742763314276,44.13568817,130.82,130.81,0.04883161]
[1742763314479,44.13568817,130.82,130.81,3.161e-05]
[1742763315971,34.2654,130.82,130.81,3.161e-05]
[1742763317976,44.13568817,130.82,130.81,3.161e-05]
[1742763338594,17.51568817,130.82,130.81,3.161e-05]
[1742763338796,44.07568817,130.82,130.81,3.161e-05]
[1742763360917,44.03568817,130.82,130.81,3.161e-05]
[1742763377533,7.6489,130.76,130.74,275.80488817]
[1742763377833,36.39028817,130.78,130.74,283.45478817]
[1742763378025,7.6487,130.77,130.74,283.45478817]
[1742763378629,7.6487,130.77,130.74,283.51217667]
[1742763378630,7.70600452,130.77,130.74,283.51217667]
[1742763380726,0.05730452,130.77,130.74,275.86227667]
[1742763381334,7.6495,130.76,130.74,275.86227667]
[1742763382837,7.6495,130.76,130.74,283.51227667]
[1742763383739,17.51978817,130.76,130.74,265.9919885]
[1742763384038,7.6495,130.76,130.74,265.9919885]
[1742763385040,7.6495,130.76,130.74,275.86227667]
[1742763385636,7.70590452,130.77,130.75,9.87028817]
[1742763388042,7.6489,130.76,130.75,9.87028817]
[1742763388242,0.05730452,130.77,130.75,9.87028817]
[1742763388638,7.70600452,130.77,130.75,9.87028817]
[1742763389040,0.05730452,130.77,130.75,9.87028817]
[1742763389443,7.70580452,130.77,130.75,9.87028817]
[1742763391346,7.6489,130.76,130.75,9.87028817]
[1742763391846,0.05730452,130.77,130.75,9.87028817]
[1742763392046,7.70610452,130.77,130.75,9.87028817]
[1742763392349,0.05730452,130.77,130.76,9.87028817]
[1742763394347,7.70560452,130.77,130.76,9.87028817]
[1742763396355,7.6492,130.76,130.75,9.87028817]
[1742763397052,7.6495,130.75,130.74,12.08227667]
[1742763399554,7.6495,130.75,130.74,2.2119885]
[1742763401559,7.6495,130.75,130.74,0.0573885]
[1742763408161,34.1692,130.76,130.74,9.92767667]
[1742763409559,7.6495,130.75,130.74,9.92767667]
[1742763410968,34.1693,130.76,130.74,9.92767667]
[1742763413165,7.6495,130.75,130.74,9.92767667]
[1742763416878,17.51978817,130.75,130.74,0.0573885]
[1742763417177,36.39028817,130.76,130.71,9.87028817]
[1742763417374,36.39028817,130.76,130.72,9.87028817]
[1742763417568,7.6505,130.74,130.72,9.87028817]
[1742763418078,7.70681363,130.74,130.72,9.92898246]
[1742763418279,7.6507,130.73,130.72,0.05869429]
[1742763418475,0.05631363,130.74,130.72,9.92898246]
[1742763418675,0.05631363,130.74,130.73,9.87028817]
[1742763420478,7.70641363,130.74,130.73,9.87028817]
[1742763420669,7.70641363,130.74,130.72,0.05869429]
[1742763420875,9.9266018,130.74,130.72,0.05869429]
[1742763421076,7.6507,130.73,130.72,0.05869429]
[1742763425776,44.04098817,130.73,130.72,0.05869429]
[1742763426680,34.1707,130.73,130.72,0.05869429]
[1742763427775,44.04098817,130.73,130.72,0.05869429]
[1742763428675,17.52098817,130.73,130.72,0.05869429]
[1742763430481,17.52098817,130.73,130.72,9.429e-05]
[1742763433883,7.6543,130.67,130.66,9.87028817]
[1742763434879,7.6539,130.68,130.66,9.87028817]
[1742763435183,0.04897479,130.68,130.66,9.87028817]
[1742763435684,7.6542,130.67,130.66,9.87028817]
[1742763435886,9.91926296,130.68,130.65,9.92432583]
[1742763436086,7.6548,130.66,130.65,9.92432583]
[1742763436287,9.91926296,130.68,130.65,9.92432583]
[1742763437083,7.6545,130.67,130.65,9.92432583]
[1742763437282,7.6545,130.67,130.65,0.05403766]
[1742763437283,9.87028817,130.67,130.65,0.05403766]
[1742763437985,7.6548,130.66,130.65,0.05403766]